Workbook

Sheet 1.Marée
AA1: Coche | AB1: Type DCP | AC1: Type bouées | AD1: Action DCP | AE1: Liste ZEE
B3: Navire | E3: : | F3: Manapany | J3: Stock bord | AA3: x | AB3: N | AC3: M3I | AD3: MISE A L'EAU DCP ECO | AE3: Eaux internationales
B4: Pavillon | E4: : | F4: Français | J4: Albacore | K4: : | L4: 23 | AA4: X | AB4: A | AC4: M3I+ | AD4: DCP ESPAGNOL | AE4: Chagos
B5: Numéro d'immatriculation | E5: : | F5: DI 929204 | J5: Listao | K5: : | L5: 35 | AD5: CHANGEMENT DE BALISE | AE5: Comores
B6: Port d'immatriculation | E6: : | F6: Dzaoudzi | J6: Patudo | K6: : | L6: 23 | AD6: VISITE AVEC PECHE | AE6: Glorieuses
B7: Signal d'appel international | E7: : | F7: FLSZ | J7: Germon | K7: : | L7: 1 | AD7: VISITE SANS PECHE | AE7: Ile Maurice
B8: Numéro OMI | E8: : | F8: 9476238 | AD8: RETRAIT | AE8: Iles Eparses
B9: Numéro CFR | E9: : | J9: Total | K9: : | L9: =SUM(L4:L7) -> 82 | AD9: PERTE / FIN TRANSMISSION BALISE | AE9: Kenya
AE10: La Réunion
B11: Patron : | D11: JOURDAIN j marc | AE11: Madagascar
B12: Marée : | D12: 1705 B | AE12: Maldives
AE13: Maurice
B14: Départ - | D14: Port | E14: : | F14: Port Victoria | AE14: Mayotte
D15: Date | E15: : | F15: 2017-12-28 | AE15: Mozambique
D16: Heure | E16: : | F16: 17:20:00 | AE16: Seychelles
D17: Loch | E17: : | F17: 0 | AE17: Tanzanie
AE18: Tromelin
B19: Arrivée - | D19: Port | E19: : | F19: Port Victoria
D20: Date | E20: : | F20: 2018-02-03
D21: Heure | E21: : | F21: 07:00:00
D22: Loch | E22: : | F22: 7428
B24: =ROUND((F20+F21)-(F15+F16),2) -> 36.57 | D24: Jours de mer pendant la marée. | H24: =F22-F17 -> 7428 | J24: milles parcourus
B26: Nombre de coups de filets dans la marée | H26: Portants | I26: : | J26: ='2.Log Book'!G434 -> 32
H27: Nuls | I27: : | J27: ='2.Log Book'!H434 -> 2
H28: Total | I28: : | J28: =J26+J27 -> 34
B30: Albacore | C30: : | D30: ='2.Log Book'!J435+'2.Log Book'!L435 -> 263 | F30: =D30/D35 -> 0.2941834452 | G30: Autres | H30: ='2.Log Book'!S435 -> 5.2
B31: Listao | C31: : | D31: ='2.Log Book'!M435 -> 541 | F31: =D31/D35 -> 0.6051454139 | G31: Rejets | H31: ='2.Log Book'!V435 -> 0
B32: Patudo | C32: : | D32: ='2.Log Book'!O435 -> 89 | F32: =D32/D35 -> 0.09955257271
B33: Germon | C33: : | D33: ='2.Log Book'!Q435 -> 1
B35: Total | C35: : | D35: =SUM(D30:D33) -> 894 | F35: =SUM(F30:F33) -> 0.9988814318

Sheet 2.Log Book
A1: DEPART / SALIDA / DEPARTURE : | K1: ARRIVEE / LLEGADA / ARRIVAL | V1: PATRON / PATRON / MASTER | AC1: NAVIRE / BARCO / VESSEL | AM1: FEUILLE HOJA SHEET
A2: PORT / PUERTO / PORT | G2: =PORT_DEPART -> Port Victoria | K2: PORT / PUERTO / PORT | P2: =PORT_arrivée -> Port Victoria | V2: =Patron -> JOURDAIN j marc
A3: DATE / FECHA / DATE | G3: =Date_départ -> 2017-12-28 | K3: DATE / FECHA / DATE | P3: =Date_arrivée -> 2018-02-03
A4: HEURE / HORA / HOUR | G4: =Heure_départ -> 17:20:00 | K4: HEURE / HORA / HOUR | P4: =Heure_arrivée -> 07:00:00 | V4: MAREE | X4: =Nr_Marée -> 1705 B | AO4: 1
A5: LOCH / CORREDERA / LOCH | G5: =Loch_départ -> 0 | K5: LOCH / CORREDERA / LOCH | P5: =Loch_arrivée -> 7428
A7: DATE | B7: POSITION (chaque calée ou à midi) | G7: CALEE | J7: CAPTURE ESTIMEE (en tonnes) | Y7: ASSOCIATION | AE7: Balise | AF7: DCP | AG7: ZEE | AH7: COMMENTAIRES | AM7: T° Mer / Mar / Sea | AN7: VENT
G8: LANCE | J8: ESTIMATION DE LA CAPTURA (en toneladas) | Y8: ASSOCIACION | AE8: Boyas | AF8: DCP | AG8: ZEE | AH8: COMMENTARIOS | AN8: VIENTO
G9: SET | J9: ESTIMATED CATCH (metric tons) | Y9: ASSOCIATION | AE9: Buoy | AF9: FAD | AG9: EEZ | AH9: COMMENTS | AN9: WIND
G10: Portant / Positivo / Successful | H10: Nul / Nulo / Nil | I10: Heure / Hora / Time TU | J10: 1 | M10: 2 | O10: 3 | Q10: 4 | S10: AUTRE ESPECE | V10: REJETS | Y10: Banc libre/banco libre/Free school | Z10: Epave / Objeto / Log N (naturelle/natural) A (artificielle/artificial) | AA10: Bateau d'assistance Barco de appoyo / Supply | AB10: Balise / Baliza / Beacon | AC10: Requin Baleine Tiburon Ballena / Shark Wale | AD10: Baleine / Ballena / Wale | AE10: Type : | AF10: CRÉER UNE LIGNE PAR EVENNEMENT SUR DCP NATUREL OU ARTIFICIEL | AG10: NOM DE LA ZEE (hors zee indiquer eaux internatio nales) | AH10: Problèmes divers Prise accessoire Taille du banc Autres associations Autres remarques | AN10: Direction / Direccion / Direction Degrés / Grados / Degree | AO10: Vitesse / Velocidad / Speed Noeuds / Nudos / Knots
J11: ALBACORE | M11: LISTAO | O11: PATUDO | Q11: GERMON | V11: Préciser le / les nom(s)
A12: FECHA | B12: POSICION (cada lance o mediadia) | S12: Préciser Noms
J13: RABIL | M13: LISTADO | O13: PATUDO | Q13: ALBACORA | V13: DESCARTES | AE13: MSI | AF13: MISE A L'EAU DCP ECO
V14: dar el / los nombre(s) | AE14: M3I | AF14: CHANGEMENT DE BALISE
S15: OTHER SPECIES | AE15: M4I
J16: YELLOWFIN | M16: SKIPJACK | O16: BIGEYE | Q16: ALBACORE | V16: DISCARDS | AE16: Numéro | AF16: VISITE AVEC PECHE
A17: DATE | B17: POSITION (each set or midday) | S17: give name(s) | V17: give name(s) | AF17: VISITE SANS PECHE
J18: YFT+10 | L18: YFT-10 | M18: SKJ | O18: BET | Q18: ALB | AF18: RETRAIT
J19: Taille | K19: Capture | L19: Capture | M19: Taille | N19: Capture | O19: Taille | P19: Capture | Q19: Taille | R19: Capture | S19: Nom | T19: Taille | U19: Capture | V19: Nom | W19: Taille | X19: Capture | AS19: total
J20: Tailla | K20: Captura | L20: Captura | M20: Tailla | N20: Captura | O20: Tailla | P20: Captura | Q20: Tailla | R20: Captura | S20: Nombre | T20: Tailla | U20: Captura | V20: Nomb. | W20: Tailla | X20: Captura | AF20: PERTE / FIN TRANSMISSION BALISE | AS20: portant | AT20: nul
J21: Size | K21: Catch | L21: Catch | M21: Size | N21: Catch | O21: Size | P21: Catch | Q21: Size | R21: Catch | S21: Name | T21: Size | U21: Catch | V21: Name | W21: Size | X21: Catch | AS21: =SUM(AQ23:AQ1416) ->  | AT21: =SUM(AR23:AR1416) -> 1 | AU21: =MAX(AU23:AU432) -> 6
A22: Une calée par ligne / Une ligne par DCP rencontré (visite / pêche / mise à l'eau, etc) | AQ22: portant | AR22: nul | AU22: page
A23: 2017-12-28 | AH23: sortie en mer 17:20 | AP23: =K23+L23+N23+P23+R23 -> 0 | AQ23: =IF(G23="x", 1,0) -> 0 | AR23: =IF(H23="x", 1,0) -> 0 | AU23: =IF(A23="","",1) -> 1
A25: 2017-12-29 | B25: 03°13s | I25: 08:10:00 | Z25: A | AB25: X | AE25: M3I | AF25: CHANGEMENT DE BALISE | AG25: Seychelles | AH25: radeau | AM25: 27.3 | AN25: 320 | AO25: 12 | AP25: =K25+L25+N25+P25+R25 -> 0 | AQ25: =IF(G25="x", 1,0) -> 0 | AR25: =IF(H25="x", 1,0) -> 0 | AU25: =IF(A25="","",1) -> 1
B26: 53°49e | AE26: 107665
A27: 2017-12-29 | B27: 02°53s | I27: 10:25:00 | Z27: A | AB27: X | AE27: M3I+ | AF27: CHANGEMENT DE BALISE | AG27: Seychelles | AH27: radeau | AM27: 27.8 | AN27: 320 | AO27: 10 | AP27: =K27+L27+N27+P27+R27 -> 0 | AQ27: =IF(G27="x", 1,0) -> 0 | AR27: =IF(H27="x", 1,0) -> 0 | AU27: =IF(A27="","",1) -> 1
B28: 53°47e | AE28: 516581
A29: 2017-12-29 | B29: 02°28s | I29: 14:35:00 | Z29: A | AB29: X | AE29: M3I | AF29: CHANGEMENT DE BALISE | AG29: Seychelles | AH29: radeau | AM29: 27.9 | AN29: 280 | AO29: 12 | AP29: =K29+L29+N29+P29+R29 -> 0 | AQ29: =IF(G29="x", 1,0) -> 0 | AR29: =IF(H29="x", 1,0) -> 0 | AU29: =IF(A29="","",1) -> 1
B30: 54°09e | AE30: 509777
A31: 2017-12-30 | B31: 01°27s | I31: 17:50:00 | AG31: Seychelles | AH31: ras | AM31: 27.5 | AN31: 340 | AO31: 12 | AP31: =K31+L31+N31+P31+R31 -> 0 | AQ31: =IF(G31="x", 1,0) -> 0 | AR31: =IF(H31="x", 1,0) -> 0 | AU31: =IF(A31="","",1) -> 1
B32: 54°33e
A33: 2017-12-31 | B33: 01°32s | I33: 07:20:00 | Z33: A | AB33: X | AE33: M3I+ | AF33: CHANGEMENT DE BALISE | AG33: Seychelles | AH33: radeau | AM33: 27.4 | AN33: 350 | AO33: 10 | AP33: =K33+L33+N33+P33+R33 -> 0 | AQ33: =IF(G33="x", 1,0) -> 0 | AR33: =IF(H33="x", 1,0) -> 0 | AU33: =IF(A33="","",1) -> 1
B34: 54°28e | AE34: 514749
A35: 2017-12-31 | B35: 01°48s | I35: 10:55:00 | Z35: A | AB35: X | AE35: M3I | AF35: CHANGEMENT DE BALISE | AG35: Seychelles | AH35: radeau | AM35: 27.6 | AN35: 350 | AO35: 12 | AP35: =K35+L35+N35+P35+R35 -> 0 | AQ35: =IF(G35="x", 1,0) -> 0 | AR35: =IF(H35="x", 1,0) -> 0 | AU35: =IF(A35="","",1) -> 1
B36: 54°16e | AE36: 107741
A37: 2017-12-31 | B37: 02°01s | I37: 16:30:00 | Z37: A | AB37: X | AE37: M3I | AF37: CHANGEMENT DE BALISE | AG37: Seychelles | AH37: radeau cassé | AM37: 27.8 | AN37: 350 | AO37: 12 | AP37: =K37+L37+N37+P37+R37 -> 0 | AQ37: =IF(G37="x", 1,0) -> 0 | AR37: =IF(H37="x", 1,0) -> 0 | AU37: =IF(A37="","",1) -> 1
B38: 54°49e | AE38: 100436
A39: 2018-01-01 | B39: 02°03s | G39: X | I39: 06:25:00 | J39: 15 | K39: 6 | L39: 2 | M39: 2.2 | N39: 22 | O39: 3 | P39: 5 | S39: RRU | U39: 0.2 | Z39: A | AB39: X | AE39: M3I | AF39: VISITE AVEC PECHE | AG39: Seychelles | AH39: radeau cassé | AM39: 27.6 | AN39: 20 | AO39: 12 | AP39: =K39+L39+N39+P39+R39 -> 35 | AQ39: =IF(G39="x", 1,0) -> 1 | AR39: =IF(H39="x", 1,0) -> 0 | AU39: =IF(A39="","",1) -> 1
B40: 54°56e | AE40: 100436
A41: 2018-01-01 | B41: 01°53s | G41: X | I41: 10:35:00 | J41: 15 | K41: 4 | M41: 2.2 | N41: 28 | O41: 3 | P41: 8 | S41: DOL | U41: 0.2 | Z41: A | AB41: X | AE41: M3I+ | AF41: VISITE AVEC PECHE | AG41: Seychelles | AH41: radeau | AM41: 27.3 | AN41: 10 | AO41: 15 | AP41: =K41+L41+N41+P41+R41 -> 40 | AQ41: =IF(G41="x", 1,0) -> 1 | AR41: =IF(H41="x", 1,0) -> 0 | AU41: =IF(A41="","",1) -> 1
B42: 54°58e | AE42: 516733
S43: WAH | U43: 0.1 | AP43: =K43+L43+N43+P43+R43 -> 0 | AQ43: =IF(G43="x", 1,0) -> 0 | AR43: =IF(H43="x", 1,0) -> 0 | AU43: =IF(A43="","",1) -> 
S45: TRI | U45: 0.2 | AP45: =K45+L45+N45+P45+R45 -> 0 | AQ45: =IF(G45="x", 1,0) -> 0 | AR45: =IF(H45="x", 1,0) -> 0 | AU45: =IF(A45="","",1) -> 
A47: 2018-01-01 | B47: 02°12s | I47: 15:10:00 | AE47: M3I+ | AF47: CHANGEMENT DE BALISE | AG47: Seychelles | AH47: radeau | AM47: 27.7 | AN47: 20 | AO47: 12 | AP47: =K47+L47+N47+P47+R47 -> 0 | AQ47: =IF(G47="x", 1,0) -> 0 | AR47: =IF(H47="x", 1,0) -> 0 | AU47: =IF(A47="","",1) -> 1
B48: 55°04e | AE48: 509028
A49: 2018-01-02 | B49: 02°15s | G49: X | I49: 06:40:00 | J49: 15 | K49: 2 | L49: 3 | M49: 2.2 | N49: 10 | O49: 3 | P49: 1 | S49: WAH | U49: 0.1 | Z49: A | AB49: X | AE49: M3I+ | AF49: VISITE AVEC PECHE | AG49: Seychelles | AH49: radeau | AM49: 27.5 | AN49: 40 | AO49: 10 | AP49: =K49+L49+N49+P49+R49 -> 16 | AQ49: =IF(G49="x", 1,0) -> 1 | AR49: =IF(H49="x", 1,0) -> 0 | AU49: =IF(A49="","",1) -> 1
B50: 55°12e | AE50: 509028
S51: TRI | U51: 0.1 | AP51: =K51+L51+N51+P51+R51 -> 0 | AQ51: =IF(G51="x", 1,0) -> 0 | AR51: =IF(H51="x", 1,0) -> 0 | AU51: =IF(A51="","",1) -> 
A53: 2018-01-02 | B53: 02°15s | G53: X | I53: 11:55:00 | J53: 15 | K53: 1 | L53: 4 | M53: 2.2 | N53: 10 | S53: DOL | U53: 0.1 | Z53: A | AB53: X | AE53: M3I+ | AF53: CHANGEMENT DE BALISE | AG53: Seychelles | AH53: radeau | AM53: 27.6 | AN53: 10 | AO53: 10 | AP53: =K53+L53+N53+P53+R53 -> 15 | AQ53: =IF(G53="x", 1,0) -> 1 | AR53: =IF(H53="x", 1,0) -> 0 | AU53: =IF(A53="","",1) -> 1
B54: 55°46e | AE54: 508750
S55: WAH | U55: 0.1 | AP55: =K55+L55+N55+P55+R55 -> 0 | AQ55: =IF(G55="x", 1,0) -> 0 | AR55: =IF(H55="x", 1,0) -> 0 | AU55: =IF(A55="","",1) -> 
A57: 2018-01-03 | B57: 02°10s | G57: X | I57: 06:30:00 | M57: 2.2 | N57: 5 | S57: RRU | U57: 0.1 | Z57: A | AB57: X | AE57: M3I | AF57: CHANGEMENT DE BALISE | AG57: Eaux internationales | AH57: radeau | AM57: 27.5 | AN57: 40 | AO57: 5 | AP57: =K57+L57+N57+P57+R57 -> 5 | AQ57: =IF(G57="x", 1,0) -> 1 | AR57: =IF(H57="x", 1,0) -> 0 | AU57: =IF(A57="","",2) -> 2
B58: 59°36e | AE58: 100531
A59: 2018-01-04 | B59: 03°34s | G59: X | I59: 10:20:00 | L59: 9 | M59: 2.2 | N59: 31 | O59: 3 | P59: 7 | S59: RRU | U59: 0.1 | Z59: A | AB59: X | AE59: M3I | AF59: VISITE AVEC PECHE | AG59: Eaux internationales | AH59: radeau | AM59: 27.3 | AN59: 280 | AO59: 5 | AP59: =K59+L59+N59+P59+R59 -> 47 | AQ59: =IF(G59="x", 1,0) -> 1 | AR59: =IF(H59="x", 1,0) -> 0 | AU59: =IF(A59="","",2) -> 2
B60: 65°22e | AE60: 100521
A61: 2018-01-05 | B61: 03°30s | G61: X | I61: 09:20:00 | J61: 15 | K61: 2 | L61: 10 | M61: 2.2 | N61: 49 | O61: 3 | P61: 4 | Z61: A | AG61: Eaux internationales | AH61: radeau | AM61: 27.4 | AN61: 250 | AO61: 10 | AP61: =K61+L61+N61+P61+R61 -> 65 | AQ61: =IF(G61="x", 1,0) -> 1 | AR61: =IF(H61="x", 1,0) -> 0 | AU61: =IF(A61="","",2) -> 2
B62: 68°26e
A63: 2018-01-06 | B63: 01°35s | G63: X | I63: 06:35:00 | L63: 5 | M63: 2.2 | N63: 17 | S63: SWO | U63: 0.1 | Z63: A | AB63: X | AE63: M3I | AF63: RETRAIT | AG63: Eaux internationales | AH63: radeau | AM63: 27.8 | AN63: 340 | AO63: 10 | AP63: =K63+L63+N63+P63+R63 -> 22 | AQ63: =IF(G63="x", 1,0) -> 1 | AR63: =IF(H63="x", 1,0) -> 0 | AU63: =IF(A63="","",2) -> 2
B64: 68°47e | AE64: 100539
S65: RRU | U65: 0.1 | AP65: =K65+L65+N65+P65+R65 -> 0 | AQ65: =IF(G65="x", 1,0) -> 0 | AR65: =IF(H65="x", 1,0) -> 0 | AU65: =IF(A65="","",2) -> 
A67: 2018-01-06 | B67: 00°33s | G67: X | I67: 14:35:00 | J67: 15 | K67: 3 | L67: 2 | M67: 2.2 | N67: 31 | O67: 3 | P67: 5 | S67: SWO | U67: 0.2 | Z67: A | AB67: X | AE67: M3I | AF67: RETRAIT | AG67: Eaux internationales | AH67: radeau | AM67: 28.2 | AN67: 350 | AO67: 10 | AP67: =K67+L67+N67+P67+R67 -> 41 | AQ67: =IF(G67="x", 1,0) -> 1 | AR67: =IF(H67="x", 1,0) -> 0 | AU67: =IF(A67="","",2) -> 2
B68: 69°31e | AE68: 230616
A69: 2018-01-07 | B69: 01°10s | G69: X | I69: 07:40:00 | J69: 15 | K69: 5 | L69: 2 | M69: 2.2 | N69: 12 | O69: 3 | P69: 1 | S69: SWO | U69: 0.1 | Z69: A | AG69: Eaux internationales | AH69: radeau | AM69: 27.9 | AN69: 10 | AO69: 12 | AP69: =K69+L69+N69+P69+R69 -> 20 | AQ69: =IF(G69="x", 1,0) -> 1 | AR69: =IF(H69="x", 1,0) -> 0 | AU69: =IF(A69="","",2) -> 2
B70: 69°34e
S71: TRI | U71: 0.1 | AP71: =K71+L71+N71+P71+R71 -> 0 | AQ71: =IF(G71="x", 1,0) -> 0 | AR71: =IF(H71="x", 1,0) -> 0 | AU71: =IF(A71="","",2) -> 
A73: 2018-01-07 | B73: 01°16s | I73: 16:00:00 | Z73: A | AE73: M3I | AF73: RETRAIT | AG73: Eaux internationales | AH73: radeau | AM73: 28 | AN73: 330 | AO73: 15 | AP73: =K73+L73+N73+P73+R73 -> 0 | AQ73: =IF(G73="x", 1,0) -> 0 | AR73: =IF(H73="x", 1,0) -> 0 | AU73: =IF(A73="","",2) -> 2
B74: 68°28e | AE74: 203860
A75: 2018-01-08 | B75: 01°22n | I75: 09:00:00 | Z75: A | AB75: X | AE75: M3I+ | AF75: MISE A L'EAU DCP ECO | AG75: Eaux internationales | AH75: radeau | AM75: 27.6 | AN75: 330 | AO75: 12 | AP75: =K75+L75+N75+P75+R75 -> 0 | AQ75: =IF(G75="x", 1,0) -> 0 | AR75: =IF(H75="x", 1,0) -> 0 | AU75: =IF(A75="","",2) -> 2
B76: 66°12e | AE76: 517672
A77: 2018-01-08 | B77: 01°38n | I77: 10:25:00 | Z77: A | AB77: X | AE77: M3I | AF77: MISE A L'EAU DCP ECO | AG77: Eaux internationales | AH77: radeau | AM77: 27.5 | AN77: 340 | AO77: 12 | AP77: =K77+L77+N77+P77+R77 -> 0 | AQ77: =IF(G77="x", 1,0) -> 0 | AR77: =IF(H77="x", 1,0) -> 0 | AU77: =IF(A77="","",2) -> 2
B78: 66°02e | AE78: 100539
A79: 2018-01-08 | B79: 01°54n | I79: 12:00:00 | Z79: A | AB79: X | AE79: M3I | AF79: MISE A L'EAU DCP ECO | AG79: Eaux internationales | AH79: radeau | AM79: 27.6 | AN79: 330 | AO79: 12 | AP79: =K79+L79+N79+P79+R79 -> 0 | AQ79: =IF(G79="x", 1,0) -> 0 | AR79: =IF(H79="x", 1,0) -> 0 | AU79: =IF(A79="","",2) -> 2
B80: 65°48e | AE80: 100449
A81: 2018-01-08 | B81: 02°03n | I81: 13:00:00 | Z81: A | AB81: X | AE81: M3I+ | AF81: MISE A L'EAU DCP ECO | AG81: Eaux internationales | AH81: radeau | AM81: 27.6 | AN81: 320 | AO81: 10 | AP81: =K81+L81+N81+P81+R81 -> 0 | AQ81: =IF(G81="x", 1,0) -> 0 | AR81: =IF(H81="x", 1,0) -> 0 | AU81: =IF(A81="","",2) -> 2
B82: 65°39e | AE82: 505227
A83: 2018-01-08 | B83: 02°13n | I83: 14:15:00 | Z83: A | AB83: X | AE83: M3I | AF83: MISE A L'EAU DCP ECO | AG83: Eaux internationales | AH83: radeau | AM83: 27.6 | AN83: 320 | AO83: 12 | AP83: =K83+L83+N83+P83+R83 -> 0 | AQ83: =IF(G83="x", 1,0) -> 0 | AR83: =IF(H83="x", 1,0) -> 0 | AU83: =IF(A83="","",2) -> 2
B84: 65°25e | AE84: 100580
A85: 2018-01-08 | B85: 02°24n | I85: 15:15:00 | Z85: A | AB85: X | AE85: M3I+ | AF85: MISE A L'EAU DCP ECO | AG85: Eaux internationales | AH85: radeau | AM85: 27.4 | AN85: 310 | AO85: 12 | AP85: =K85+L85+N85+P85+R85 -> 0 | AQ85: =IF(G85="x", 1,0) -> 0 | AR85: =IF(H85="x", 1,0) -> 0 | AU85: =IF(A85="","",2) -> 2
B86: 65°13e | AE86: 508856
A87: 2018-01-08 | B87: 02°34n | I87: 16:25:00 | Z87: A | AB87: X | AE87: M3I | AF87: MISE A L'EAU DCP ECO | AG87: Eaux internationales | AH87: radeau | AM87: 27.6 | AN87: 320 | AO87: 12 | AP87: =K87+L87+N87+P87+R87 -> 0 | AQ87: =IF(G87="x", 1,0) -> 0 | AR87: =IF(H87="x", 1,0) -> 0 | AU87: =IF(A87="","",2) -> 2
B88: 65°02e | AE88: 230616
A89: 2018-01-08 | B89: 02°45n | I89: 17:30:00 | Z89: A | AB89: X | AE89: M3I | AF89: MISE A L'EAU DCP ECO | AG89: Eaux internationales | AH89: radeau | AM89: 27.5 | AN89: 320 | AO89: 12 | AP89: =K89+L89+N89+P89+R89 -> 0 | AQ89: =IF(G89="x", 1,0) -> 0 | AR89: =IF(H89="x", 1,0) -> 0 | AU89: =IF(A89="","",2) -> 2
B90: 64°52e | AE90: 257207
A91: 2018-01-08 | B91: 02°59n | I91: 18:45:00 | Z91: A | AB91: X | AE91: M3I | AF91: MISE A L'EAU DCP ECO | AG91: Eaux internationales | AH91: radeau | AM91: 27.8 | AN91: 320 | AO91: 12 | AP91: =K91+L91+N91+P91+R91 -> 0 | AQ91: =IF(G91="x", 1,0) -> 0 | AR91: =IF(H91="x", 1,0) -> 0 | AU91: =IF(A91="","",3) -> 3
B92: 64°41e | AE92: 104949
A93: 2018-01-09 | B93: 05°23n | G93: X | I93: 07:35:00 | J93: 12 | K93: 3 | L93: 3 | M93: 2.2 | N93: 23 | O93: 3 | P93: 11 | S93: RMB | U93: 0.2 | Z93: A | AB93: X | AE93: M3I | AF93: VISITE AVEC PECHE | AG93: Eaux internationales | AH93: radeau | AM93: 27.6 | AN93: 330 | AO93: 10 | AP93: =K93+L93+N93+P93+R93 -> 40 | AQ93: =IF(G93="x", 1,0) -> 1 | AR93: =IF(H93="x", 1,0) -> 0 | AU93: =IF(A93="","",3) -> 3
B94: 62°56e | AE94: 105213
S95: SWO | U95: 0.1 | AP95: =K95+L95+N95+P95+R95 -> 0 | AQ95: =IF(G95="x", 1,0) -> 0 | AR95: =IF(H95="x", 1,0) -> 0 | AU95: =IF(A95="","",3) -> 
S97: FRZ | U97: 0.3 | AP97: =K97+L97+N97+P97+R97 -> 0 | AQ97: =IF(G97="x", 1,0) -> 0 | AR97: =IF(H97="x", 1,0) -> 0 | AU97: =IF(A97="","",3) -> 
A99: 2018-01-09 | B99: 06°02n | I99: 14:00:00 | Z99: A | AB99: X | AE99: M3I | AF99: MISE A L'EAU DCP ECO | AG99: Eaux internationales | AH99: radeau | AM99: 27.3 | AN99: 350 | AO99: 15 | AP99: =K99+L99+N99+P99+R99 -> 0 | AQ99: =IF(G99="x", 1,0) -> 0 | AR99: =IF(H99="x", 1,0) -> 0 | AU99: =IF(A99="","",3) -> 3
B100: 62°12e | AE100: 203521
A101: 2018-01-09 | B101: 06°10n | I101: 15:45:00 | Z101: A | AB101: X | AE101: M3I | AF101: MISE A L'EAU DCP ECO | AG101: Eaux internationales | AH101: radeau | AM101: 27.2 | AN101: 350 | AO101: 15 | AP101: =K101+L101+N101+P101+R101 -> 0 | AQ101: =IF(G101="x", 1,0) -> 0 | AR101: =IF(H101="x", 1,0) -> 0 | AU101: =IF(A101="","",3) -> 3
B102: 61°56e | AE102: 257342
A103: 2018-01-09 | B103: 06°15n | I103: 17:30:00 | Z103: A | AB103: X | AE103: M3I | AF103: MISE A L'EAU DCP ECO | AG103: Eaux internationales | AH103: radeau | AM103: 27.2 | AN103: 10 | AO103: 12 | AP103: =K103+L103+N103+P103+R103 -> 0 | AQ103: =IF(G103="x", 1,0) -> 0 | AR103: =IF(H103="x", 1,0) -> 0 | AU103: =IF(A103="","",3) -> 3
B104: 61°38e | AE104: 105276
A105: 2018-01-10 | B105: 06°28n | G105: X | I105: 06:20:00 | J105: 15 | K105: 7 | L105: 3 | M105: 2.2 | N105: 25 | S105: SWO | U105: 0.2 | Z105: A | AB105: X | AE105: M3I | AF105: VISITE AVEC PECHE | AG105: Eaux internationales | AH105: radeau | AM105: 27.1 | AN105: 20 | AO105: 12 | AP105: =K105+L105+N105+P105+R105 -> 35 | AQ105: =IF(G105="x", 1,0) -> 1 | AR105: =IF(H105="x", 1,0) -> 0 | AU105: =IF(A105="","",3) -> 3
B106: 61°12e | AE106: 256906
S107: FRZ | U107: 0.1 | AP107: =K107+L107+N107+P107+R107 -> 0 | AQ107: =IF(G107="x", 1,0) -> 0 | AR107: =IF(H107="x", 1,0) -> 0 | AU107: =IF(A107="","",3) -> 
A109: 2018-01-10 | B109: 06°38n | I109: 11:00:00 | Z109: A | AB109: X | AE109: M3I | AF109: CHANGEMENT DE BALISE | AG109: Eaux internationales | AH109: radeau | AM109: 27.2 | AN109: 10 | AO109: 12 | AP109: =K109+L109+N109+P109+R109 -> 0 | AQ109: =IF(G109="x", 1,0) -> 0 | AR109: =IF(H109="x", 1,0) -> 0 | AU109: =IF(A109="","",3) -> 3
B110: 61°21e | AE110: 103983
A111: 2018-01-10 | B111: 06°03n | I111: 18:00:00 | Z111: A | AB111: X | AE111: M3I | AF111: MISE A L'EAU DCP ECO | AG111: Eaux internationales | AH111: radeau | AM111: 27.3 | AN111: 30 | AO111: 10 | AP111: =K111+L111+N111+P111+R111 -> 0 | AQ111: =IF(G111="x", 1,0) -> 0 | AR111: =IF(H111="x", 1,0) -> 0 | AU111: =IF(A111="","",3) -> 3
B112: 62°11e | AE112: 100312
A113: 2018-01-11 | B113: 05°04n | I113: 10:30:00 | Z113: A | AE113: M3I | AF113: MISE A L'EAU DCP ECO | AG113: Eaux internationales | AH113: radeau | AM113: 26.9 | AN113: 340 | AO113: 15 | AP113: =K113+L113+N113+P113+R113 -> 0 | AQ113: =IF(G113="x", 1,0) -> 0 | AR113: =IF(H113="x", 1,0) -> 0 | AU113: =IF(A113="","",3) -> 3
B114: 61°35e | AE114: 257404
A115: 2018-01-11 | B115: 04°47n | G115: X | I115: 13:00:00 | J115: 12 | K115: 1 | L115: 2 | M115: 2 | N115: 5 | O115: 3 | P115: 2 | S115: FRZ | U115: 0.1 | Z115: A | AB115: X | AE115: M3I | AF115: CHANGEMENT DE BALISE | AG115: Eaux internationales | AH115: radeau | AM115: 26.8 | AN115: 10 | AO115: 15 | AP115: =K115+L115+N115+P115+R115 -> 10 | AQ115: =IF(G115="x", 1,0) -> 1 | AR115: =IF(H115="x", 1,0) -> 0 | AU115: =IF(A115="","",3) -> 3
B116: 61°41e | AE116: 257206
A117: 2018-01-11 | B117: 04°30n | I117: 16:45:00 | Z117: A | AB117: X | AE117: M3I+ | AF117: MISE A L'EAU DCP ECO | AG117: Eaux internationales | AH117: radeau | AM117: 26.9 | AN117: 350 | AO117: 15 | AP117: =K117+L117+N117+P117+R117 -> 0 | AQ117: =IF(G117="x", 1,0) -> 0 | AR117: =IF(H117="x", 1,0) -> 0 | AU117: =IF(A117="","",3) -> 3
B118: 61°46e | AE118: 244768
A119: 2018-01-11 | B119: 04°17n | I119: 18:00:00 | Z119: A | AB119: X | AE119: M3I | AF119: MISE A L'EAU DCP ECO | AG119: Eaux internationales | AH119: radeau | AM119: 26.8 | AN119: 345 | AO119: 12 | AP119: =K119+L119+N119+P119+R119 -> 0 | AQ119: =IF(G119="x", 1,0) -> 0 | AR119: =IF(H119="x", 1,0) -> 0 | AU119: =IF(A119="","",3) -> 3
B120: 61°50e | AE120: 257174
A121: 2018-01-12 | B121: 01°53n | I121: 07:15:00 | Z121: A | AB121: X | AE121: M3I | AF121: MISE A L'EAU DCP ECO | AG121: Eaux internationales | AH121: tas de bout + radeau | AM121: 26.5 | AN121: 350 | AO121: 10 | AP121: =K121+L121+N121+P121+R121 -> 0 | AQ121: =IF(G121="x", 1,0) -> 0 | AR121: =IF(H121="x", 1,0) -> 0 | AU121: =IF(A121="","",3) -> 3
B122: 62°39e | AE122: 221049
A123: 2018-01-13 | B123: 02°58s | G123: X | I123: 09:20:00 | L123: 10 | M123: 2.2 | N123: 30 | O123: 3 | P123: 10 | S123: RRU | U123: 0.5 | Z123: A | AB123: X | AE123: M3I+ | AF123: VISITE AVEC PECHE | AG123: Eaux internationales | AH123: radeau | AM123: 27.3 | AN123: 340 | AO123: 10 | AP123: =K123+L123+N123+P123+R123 -> 50 | AQ123: =IF(G123="x", 1,0) -> 1 | AR123: =IF(H123="x", 1,0) -> 0 | AU123: =IF(A123="","",3) -> 3
B124: 64°59e | AE124: 516328
A125: 2018-01-13 | B125: 02°43s | I125: 15:45:00 | Z125: A | AB125: X | AE125: M3I | AF125: RETRAIT | AG125: Eaux internationales | AH125: radeau | AM125: 27.9 | AN125: 330 | AO125: 10 | AP125: =K125+L125+N125+P125+R125 -> 0 | AQ125: =IF(G125="x", 1,0) -> 0 | AR125: =IF(H125="x", 1,0) -> 0 | AU125: =IF(A125="","",4) -> 4
B126: 65°29e | AE126: 100531
A127: 2018-01-14 | B127: 02°58s | G127: X | I127: 06:50:00 | L127: 3 | M127: 2.2 | N127: 5 | S127: RRU | U127: 0.1 | Z127: A | AB127: X | AE127: M3I+ | AF127: VISITE AVEC PECHE | AG127: Eaux internationales | AH127: radeau | AM127: 27.3 | AN127: 350 | AO127: 10 | AP127: 8 | AQ127: =IF(G127="x", 1,0) -> 1 | AR127: =IF(H127="x", 1,0) -> 0 | AU127: =IF(A127="","",4) -> 4
B128: 65°27e | AE128: 516328
A129: 2018-01-15 | B129: 02°27s | G129: X | I129: 11:50:00 | J129: 15 | K129: 10 | L129: 4 | M129: 2.2 | N129: 10 | O129: 3 | P129: 4 | Z129: A | AB129: X | AE129: M3I | AF129: RETRAIT | AG129: Eaux internationales | AH129: radeau | AM129: 27.2 | AN129: 345 | AO129: 10 | AP129: 28 | AQ129: =IF(G129="x", 1,0) -> 1 | AR129: =IF(H129="x", 1,0) -> 0 | AU129: =IF(A129="","",4) -> 4
B130: 68°40e | AE130: 257059
A131: 2018-01-16 | B131: 02°25s | G131: X | I131: 06:35:00 | J131: 15 | K131: 5 | L131: 2 | M131: 2.2 | N131: 1 | O131: 3 | P131: 2 | Z131: A | AB131: X | AE131: M3I | AF131: RETRAIT | AG131: Eaux internationales | AH131: radeau | AM131: 27.2 | AN131: 330 | AO131: 5 | AP131: 10 | AQ131: =IF(G131="x", 1,0) -> 1 | AR131: =IF(H131="x", 1,0) -> 0 | AU131: =IF(A131="","",4) -> 4
B132: 69°04e | AE132: 210487
A133: 2018-01-17 | B133: 04°24s | G133: X | I133: 07:40:00 | L133: 1 | M133: 2.2 | N133: 8 | O133: 3 | P133: 1 | S133: RRU | U133: 0.1 | Z133: A | AB133: X | AE133: M3I | AG133: Eaux internationales | AH133: radeau sans bouée | AM133: 27.4 | AN133: 260 | AO133: 10 | AP133: 10 | AQ133: =IF(G133="x", 1,0) -> 1 | AR133: =IF(H133="x", 1,0) -> 0 | AU133: =IF(A133="","",4) -> 4
B134: 68°15e | AE134: 105269
A135: 2018-01-18 | B135: 04°36s | G135: X | I135: 06:45:00 | L135: 4 | M135: 2.2 | N135: 14 | O135: 3 | P135: 2 | S135: RRU | U135: 0.1 | Z135: A | AB135: X | AE135: M3I+ | AF135: VISITE AVEC PECHE | AG135: Eaux internationales | AH135: radeau | AM135: 27.5 | AN135: 230 | AO135: 10 | AP135: 20 | AQ135: =IF(G135="x", 1,0) -> 1 | AR135: =IF(H135="x", 1,0) -> 0 | AU135: =IF(A135="","",4) -> 4
B136: 67°13e | AE136: 100684
A137: 2018-01-18 | B137: 04°30s | I137: 11:35:00 | Z137: A | AB137: X | AE137: M3I | AF137: CHANGEMENT DE BALISE | AG137: Eaux internationales | AH137: radeau | AM137: 27.5 | AN137: 330 | AO137: 10 | AP137: 0 | AQ137: =IF(G137="x", 1,0) -> 0 | AR137: =IF(H137="x", 1,0) -> 0 | AU137: =IF(A137="","",4) -> 4
B138: 66°44e | AE138: 104363
A139: 2018-01-19 | B139: 02°58s | I139: 17:40:00 | AG139: Eaux internationales | AH139: ras | AM139: 27.6 | AN139: 280 | AO139: 10 | AP139: =K139+L139+N139+P139+R139 -> 0 | AQ139: =IF(G139="x", 1,0) -> 0 | AR139: =IF(H139="x", 1,0) -> 0 | AU139: =IF(A139="","",4) -> 4
B140: 61°32e
A141: 2018-01-20 | B141: 02°34s | I141: 18:00:00 | AG141: Seychelles | AH141: ras | AM141: 27.4 | AN141: 320 | AO141: 12 | AP141: =K141+L141+N141+P141+R141 -> 0 | AQ141: =IF(G143="x", 1,0) -> 0 | AR141: =IF(H141="x", 1,0) -> 0 | AU141: =IF(A141="","",4) -> 4
B142: 56°35e
A143: 2018-01-21 | B143: 02°43s | I143: 17:30:00 | AG143: Seychelles | AH143: ras | AM143: 26.4 | AN143: 340 | AO143: 10 | AP143: =K143+L143+N143+P143+R143 -> 0 | AQ143: =IF(#REF!="x", 1,0) ->  | AR143: =IF(H143="x", 1,0) -> 0 | AU143: =IF(A143="","",4) -> 4
B144: 51°35e
A145: 2018-01-22 | B145: 02°43s | G145: X | I145: 08:00:00 | J145: 15 | K145: 18 | L145: 2 | M145: 2.2 | N145: 32 | Z145: A | AB145: X | AE145: M3I | AF145: CHANGEMENT DE BALISE | AG145: Seychelles | AH145: radeau | AM145: 26.1 | AN145: 330 | AO145: 12 | AP145: =K145+L145+N145+P145+R145 -> 52 | AQ145: =IF(G145="x", 1,0) -> 1 | AR145: =IF(H145="x", 1,0) -> 0 | AU145: =IF(A145="","",4) -> 4
B146: 51°20e | AE146: 100362
A147: 2018-01-22 | B147: 03°22s | I147: 16:00:00 | Z147: A | AB147: X | AE147: M3I | AF147: MISE A L'EAU DCP ECO | AG147: Seychelles | AH147: radeau | AM147: 26.4 | AN147: 340 | AO147: 12 | AP147: =K147+L147+N147+P147+R147 -> 0 | AQ147: =IF(G147="x", 1,0) -> 0 | AR147: =IF(H147="x", 1,0) -> 0 | AU147: =IF(A147="","",4) -> 4
B148: 50°39e | AE148: 100496
A149: 2018-01-22 | B149: 02°59s | I149: 18:30:00 | Z149: A | AB149: X | AE149: M3I | AF149: MISE A L'EAU DCP ECO | AG149: Seychelles | AH149: radeau | AM149: 26.2 | AN149: 40 | AO149: 12 | AP149: =K149+L149+N149+P149+R149 -> 0 | AQ149: =IF(G149="x", 1,0) -> 0 | AR149: =IF(H149="x", 1,0) -> 0 | AU149: =IF(A149="","",4) -> 4
B150: 50°53e | AE150: 104974
A151: 2018-01-23 | B151: 01°22s | I151: 13:40:00 | Z151: A | AB151: X | AE151: M3I | AF151: MISE A L'EAU DCP ECO | AG151: Eaux internationales | AH151: radeau | AM151: 26.1 | AN151: 350 | AO151: 10 | AP151: =K151+L151+N151+P151+R151 -> 0 | AQ151: =IF(G151="x", 1,0) -> 0 | AR151: =IF(H151="x", 1,0) -> 0 | AU151: =IF(A151="","",4) -> 4
B152: 51°37e | AE152: 257223
A153: 2018-01-23 | B153: 01°57s | I153: 17:20:00 | Z153: A | AB153: X | AE153: M3I | AF153: CHANGEMENT DE BALISE | AG153: Seychelles | AH153: radeau | AM153: 26.8 | AN153: 10 | AO153: 12 | AP153: =K153+L153+N153+P153+R153 -> 0 | AQ153: =IF(G153="x", 1,0) -> 0 | AR153: =IF(H153="x", 1,0) -> 0 | AU153: =IF(A153="","",4) -> 4
B154: 52°02e | AE154: 210487
A155: 2018-01-24 | B155: 03°08s | G155: X | I155: 10:35:00 | M155: 2.2 | N155: 26 | Q155: 12 | R155: 1 | Z155: N | AB155: X | AE155: M3I | AF155: MISE A L'EAU DCP ECO | AG155: Seychelles | AH155: bout de palangre+ radeau | AM155: 26.6 | AN155: 30 | AO155: 10 | AP155: =K155+L155+N155+P155+R155 -> 27 | AQ155: =IF(G155="x", 1,0) -> 1 | AR155: =IF(H155="x", 1,0) -> 0 | AU155: =IF(A155="","",4) -> 4
B156: 51°24e | AE156: 257059
A157: 2018-01-24 | B157: 03°23s | G157: X | I157: 15:40:00 | J157: 15 | K157: 8 | L157: 7 | S157: DOL | U157: 0.1 | Z157: A | AB157: X | AE157: M3I | AF157: VISITE AVEC PECHE | AG157: Seychelles | AH157: radeau | AM157: 26.3 | AN157: 340 | AO157: 10 | AP157: =K157+L157+N157+P157+R157 -> 15 | AQ157: =IF(G157="x", 1,0) -> 1 | AR157: =IF(H157="x", 1,0) -> 0 | AU157: =IF(A157="","",4) -> 4
B158: 50°50e | AE158: 100607
A159: 2018-01-25 | B159: 04°23s | G159: X | I159: 09:15:00 | J159: 15 | K159: 11 | L159: 3 | M159: 2.2 | N159: 5 | O159: 3 | P159: 1 | Z159: A | AB159: X | AE159: M3I | AF159: CHANGEMENT DE BALISE | AG159: Seychelles | AH159: radeau | AM159: 26.3 | AN159: 290 | AO159: 10 | AP159: =K159+L159+N159+P159+R159 -> 20 | AQ159: =IF(G159="x", 1,0) -> 1 | AR159: =IF(H159="x", 1,0) -> 0 | AU159: =IF(A159="","",5) -> 5
B160: 51°08e | AE160: 104849
A161: 2018-01-25 | B161: 04°17s | G161: X | I161: 12:15:00 | J161: 50 | K161: 25 | Y161: X | AG161: Seychelles | AH161: matte Yellowfin | AM161: 26.4 | AN161: 290 | AO161: 12 | AP161: =K161+L161+N161+P161+R161 -> 25 | AQ161: =IF(G161="x", 1,0) -> 1 | AR161: =IF(H161="x", 1,0) -> 0 | AU161: =IF(A161="","",5) -> 5
B162: 51°14e
A163: 2018-01-25 | B163: 04°16s | H163: X | I163: 15:10:00 | Y163: X | AG163: Seychelles | AH163: matte Yellowfin | AM163: 26.4 | AN163: 290 | AO163: 10 | AP163: =K163+L163+N163+P163+R163 -> 0 | AQ163: =IF(G163="x", 1,0) -> 0 | AR163: =IF(H163="x", 1,0) -> 1 | AU163: =IF(A163="","",5) -> 5
B164: 51°18e
A165: 2018-01-26 | B165: 04°20s | H165: X | I165: 10:15:00 | Z165: N | AB165: X | AE165: M3I | AG165: Seychelles | AH165: tas de palangre | AM165: 26.4 | AN165: 350 | AO165: 10
B166: 51°36e | AE166: 100491
A167: 2018-01-26 | B167: 04°31s | G167: X | I167: 14:30:00 | J167: 15 | K167: 19 | L167: 1 | Y167: X | AG167: Seychelles | AH167: matte Yellowfin | AM167: 26.6 | AN167: 20 | AO167: 10 | AP167: =K167+L167+N167+P167+R167 -> 20 | AQ167: =IF(G167="x", 1,0) -> 1 | AR167: =IF(H167="x", 1,0) -> 0 | AU167: =IF(A167="","",5) -> 5
B168: 51°43e
A169: 2018-01-27 | B169: 00°02s | I169: 15:20:00 | Z169: A | AB169: X | AE169: M3I | AF169: CHANGEMENT DE BALISE | AG169: Eaux internationales | AH169: radeau | AM169: 26 | AN169: 35 | AO169: 12 | AP169: =K169+L169+N169+P169+R169 -> 0 | AQ169: =IF(G169="x", 1,0) -> 0 | AR169: =IF(H169="x", 1,0) -> 0 | AU169: =IF(A169="","",5) -> 5
B170: 53°25e | AE170: 104374
A171: 2018-01-28 | B171: 03°08n | G171: X | I171: 09:00:00 | J171: 15 | K171: 13 | L171: 8 | M171: 2.2 | N171: 13 | O171: 3 | P171: 6 | Z171: A | AB171: X | AE171: M3I | AF171: CHANGEMENT DE BALISE | AG171: Eaux internationales | AH171: radeau | AM171: 25.9 | AN171: 330 | AO171: 5 | AP171: =K171+L171+N171+P171+R171 -> 40 | AQ171: =IF(G171="x", 1,0) -> 1 | AR171: =IF(H171="x", 1,0) -> 0 | AU171: =IF(A171="","",5) -> 5
B172: 55°07e | AE172: 104875
A173: 2018-01-28 | B173: 03°24n | I173: 13:30:00 | Z173: N | AB173: X | AE173: M3I | AF173: MISE A L'EAU DCP ECO | AG173: Eaux internationales | AH173: pallette plastique+ radeau | AM173: 26.3 | AN173: 330 | AO173: 5 | AP173: =K173+L173+N173+P173+R173 -> 0 | AQ173: =IF(G173="x", 1,0) -> 0 | AR173: =IF(H173="x", 1,0) -> 0 | AU173: =IF(A173="","",5) -> 5
B174: 55°20e | AE174: 104854
A175: 2018-01-28 | B175: 03°37n | G175: X | I175: 14:55:00 | M175: 2.2 | N175: 17 | S175: FRZ | U175: 0.5 | Z175: A | AB175: X | AE175: M3I+ | AF175: CHANGEMENT DE BALISE | AG175: Eaux internationales | AH175: radeau | AM175: 26.5 | AN175: 340 | AO175: 10 | AP175: =K175+L175+N175+P175+R175 -> 17 | AQ175: =IF(G175="x", 1,0) -> 1 | AR175: =IF(H175="x", 1,0) -> 0 | AU175: =IF(A175="","",5) -> 5
B176: 55°26e | AE176: 519143
A177: 2018-01-29 | B177: 04°45n | G177: X | I177: 07:20:00 | L177: 3 | M177: 2.2 | N177: 27 | O177: 3 | P177: 3 | S177: SWO | U177: 0.3 | Z177: A | AG177: Eaux internationales | AH177: radeau | AM177: 26.1 | AN177: 330 | AO177: 10 | AP177: =K177+L177+N177+P177+R177 -> 33 | AQ177: =IF(G177="x", 1,0) -> 1 | AR177: =IF(H177="x", 1,0) -> 0 | AU177: =IF(A177="","",5) -> 5
B178: 56°12e
A179: 2018-01-29 | B179: 04°42n | I179: 11:20:00 | Z179: A | AB179: X | AE179: M3I+ | AF179: CHANGEMENT DE BALISE | AG179: Eaux internationales | AH179: radeau + ajouté radeau | AM179: 26.2 | AN179: 340 | AO179: 10 | AP179: =K179+L179+N179+P179+R179 -> 0 | AQ179: =IF(G179="x", 1,0) -> 0 | AR179: =IF(H179="x", 1,0) -> 0 | AU179: =IF(A179="","",5) -> 5
B180: 56°19e | AE180: 516750
A181: 2018-01-29 | B181: 04°40n | I181: 14:05:00 | Z181: A | AB181: X | AE181: M3I | AF181: CHANGEMENT DE BALISE | AG181: Eaux internationales | AH181: radeau | AM181: 26.3 | AN181: 300 | AO181: 10 | AP181: =K181+L181+N181+P181+R181 -> 0 | AQ181: =IF(G181="x", 1,0) -> 0 | AR181: =IF(H181="x", 1,0) -> 0 | AU181: =IF(A181="","",5) -> 5
B182: 55°47e | AE182: 107579
A183: 2018-01-30 | B183: 04°47n | G183: X | I183: 06:45:00 | J183: 15 | K183: 5 | L183: 5 | M183: 2.2 | N183: 37 | O183: 3 | P183: 6 | S183: SWO | U183: 0.1 | Z183: A | AB183: X | AE183: M3I | AF183: VISITE AVEC PECHE | AG183: Eaux internationales | AH183: radeau | AM183: 26 | AN183: 350 | AO183: 12 | AP183: =K183+L183+N183+P183+R183 -> 53 | AQ183: =IF(G183="x", 1,0) -> 1 | AR183: =IF(H183="x", 1,0) -> 0 | AU183: =IF(A183="","",5) -> 5
B184: 55°42e | AE184: 107579
S185: DOL | U185: 0.1 | AP185: =K185+L185+N185+P185+R185 -> 0 | AQ185: =IF(G185="x", 1,0) -> 0 | AR185: =IF(H185="x", 1,0) -> 0 | AU185: =IF(A185="","",5) -> 
S187: FRZ | U187: 0.1 | AP187: 0
A189: 2018-01-30 | B189: 04°38n | G189: X | I189: 10:30:00 | M189: 2.2 | N189: 12 | Z189: A | AG189: Eaux internationales | AH189: radeau | AM189: 26.1 | AN189: 340 | AO189: 12 | AP189: =K189+L189+N189+P189+R189 -> 12 | AQ189: =IF(G189="x", 1,0) -> 1 | AR189: =IF(H189="x", 1,0) -> 0 | AU189: =IF(A189="","",5) -> 5
B190: 55°50e
A191: 2018-01-31 | B191: 04°32n | G191: X | I191: 11:15:00 | J191: 15 | K191: 7 | L191: 2 | M191: 2.2 | N191: 29 | O191: 3 | P191: 2 | S191: FRZ | U191: 0.1 | Z191: A | AB191: X | AE191: M3I | AF191: CHANGEMENT DE BALISE | AG191: Eaux internationales | AH191: radeau | AM191: 26.2 | AN191: 350 | AO191: 10 | AP191: =K191+L191+N191+P191+R191 -> 40 | AQ191: =IF(G191="x", 1,0) -> 1 | AR191: =IF(H191="x", 1,0) -> 0 | AU191: =IF(A191="","",5) -> 5
B192: 55°22e | AE192: 107624
A193: 2018-01-31 | B193: 04°17n | I193: 17:10:00 | Z193: A | AB193: X | AE193: M3I+ | AF193: MISE A L'EAU DCP ECO | AG193: Eaux internationales | AH193: radeau | AM193: 26.1 | AN193: 280 | AO193: 10 | AP193: =K193+L193+N193+P193+R193 -> 0 | AQ193: =IF(G193="x", 1,0) -> 0 | AR193: =IF(H193="x", 1,0) -> 0 | AU193: =IF(A193="","",5) -> 5
B194: 54°44e | AE194: 516715
A195: 2018-01-31 | B195: 04°11n | I195: 18:30:00 | Z195: A | AB195: X | AE195: M3I | AF195: MISE A L'EAU DCP ECO | AG195: Eaux internationales | AH195: radeau | AM195: 26 | AN195: 290 | AO195: 5 | AP195: =K195+L195+N195+P195+R195 -> 0 | AQ195: =IF(G195="x", 1,0) -> 0 | AR195: =IF(H195="x", 1,0) -> 0 | AU195: =IF(A195="","",5) -> 5
B196: 54°27e | AE196: 100565
A197: 2018-02-01 | B197: 04°05n | I197: 06:20:00 | Z197: A | AB197: X | AE197: M3I+ | AF197: MISE A L'EAU DCP ECO | AG197: Eaux internationales | AH197: radeau | AM197: 25.8 | AN197: 30 | AO197: 10 | AP197: =K197+L197+N197+P197+R197 -> 0 | AQ197: =IF(G197="x", 1,0) -> 0 | AR197: =IF(H197="x", 1,0) -> 0 | AU197: =IF(A197="","",6) -> 6
B198: 54°08e | AE198: 518953
A199: 2018-02-01 | B199: 03°58n | I199: 07:45:00 | Z199: A | AB199: X | AE199: M3I | AF199: MISE A L'EAU DCP ECO | AG199: Eaux internationales | AH199: radeau | AM199: 25.7 | AN199: 40 | AO199: 10 | AP199: =K199+L199+N199+P199+R199 -> 0 | AQ199: =IF(G199="x", 1,0) -> 0 | AR199: =IF(H199="x", 1,0) -> 0 | AU199: =IF(A199="","",6) -> 6
B200: 53°50e | AE200: 203860
A201: 2018-02-01 | B201: 03°50n | I201: 09:00:00 | Z201: A | AB201: X | AE201: M3I+ | AF201: MISE A L'EAU DCP ECO | AG201: Eaux internationales | AH201: radeau | AM201: 25.7 | AN201: 40 | AO201: 5 | AP201: =K201+L201+N201+P201+R201 -> 0 | AQ201: =IF(G201="x", 1,0) -> 0 | AR201: =IF(H201="x", 1,0) -> 0 | AU201: =IF(A201="","",6) -> 6
B202: 53°34e | AE202: 519156
A203: 2018-02-01 | B203: 03°46n | G203: X | I203: 09:50:00 | L203: 8 | M203: 2 | N203: 7 | O203: 3 | P203: 8 | S203: FRZ | U203: 0.2 | Y203: X | AH203: matte skj | AM203: 25.7 | AN203: 50 | AO203: 10 | AP203: =K203+L203+N203+P203+R203 -> 23 | AQ203: =IF(G203="x", 1,0) -> 1 | AR203: =IF(H203="x", 1,0) -> 0 | AU203: =IF(A203="","",6) -> 6
B204: 53°31e
A205: 2018-02-01 | B205: 03°39n | I205: 14:00:00 | Z205: A | AB205: X | AE205: M3I | AF205: MISE A L'EAU DCP ECO | AG205: Eaux internationales | AH205: radeau | AM205: 25.9 | AN205: 45 | AO205: 12 | AP205: =K205+L205+N205+P205+R205 -> 0 | AQ205: =IF(G205="x", 1,0) -> 0 | AR205: =IF(H205="x", 1,0) -> 0 | AU205: =IF(A205="","",6) -> 6
B206: 53°20e | AE206: 107654
A207: 2018-02-01 | B207: 03°33n | I207: 15:25:00 | Z207: A | AB207: X | AE207: M3I+ | AF207: MISE A L'EAU DCP ECO | AG207: Eaux internationales | AH207: radeau | AM207: 25.9 | AN207: 60 | AO207: 10 | AP207: =K207+L207+N207+P207+R207 -> 0 | AQ207: =IF(G207="x", 1,0) -> 0 | AR207: =IF(H207="x", 1,0) -> 0 | AU207: =IF(A207="","",6) -> 6
B208: 53°02e | AE208: 519044
A209: 2018-02-01 | B209: 03°16n | I209: 16:45:00 | Z209: A | AB209: X | AE209: M3I | AF209: MISE A L'EAU DCP ECO | AG209: Eaux internationales | AH209: radeau | AM209: 26 | AN209: 10 | AO209: 10 | AP209: =K209+L209+N209+P209+R209 -> 0 | AQ209: =IF(G209="x", 1,0) -> 0 | AR209: =IF(H209="x", 1,0) -> 0 | AU209: =IF(A209="","",6) -> 6
B210: 53°02e | AE210: 104251
A211: 2018-02-01 | B211: 02°55n | I211: 18:20:00 | Z211: A | AB211: X | AE211: M3I+ | AF211: MISE A L'EAU DCP ECO | AG211: Eaux internationales | AH211: radeau | AM211: 26 | AN211: 15 | AO211: 12 | AP211: =K211+L211+N211+P211+R211 -> 0 | AQ211: =IF(G211="x", 1,0) -> 0 | AR211: =IF(H211="x", 1,0) -> 0 | AU211: =IF(A211="","",6) -> 6
B212: 53°04e | AE212: 519005
A213: 2018-02-02 | B213: 00°12n | I213: 06:25:00 | Z213: A | AB213: X | AE213: M3I | AF213: MISE A L'EAU DCP ECO | AG213: Eaux internationales | AH213: radeau | AM213: 25.8 | AN213: 350 | AO213: 10 | AP213: =K213+L213+N213+P213+R213 -> 0 | AQ213: =IF(G213="x", 1,0) -> 0 | AR213: =IF(H213="x", 1,0) -> 0 | AU213: =IF(A213="","",6) -> 6
... 115 more rows

Sheet 3.By-catch (hidden)
A1: Navire : | B1: Manapany | E1: Tonnage total : | F1: =IFERROR(D4+F4+H4+J4+L4+N4+P4+R4,"") -> 3.2
A2: Marée : | B2: 1704 B
C4: Total tonnage : | D4: =IFERROR(SUBTOTAL(9,D7:D1048576),"") -> 0.2 | F4: =IFERROR(SUBTOTAL(9,F7:F1048576),"") -> 0 | H4: =IFERROR(SUBTOTAL(9,H7:H1048576),"") -> 1.5 | J4: =IFERROR(SUBTOTAL(9,J7:J1048576),"") -> 0.3 | L4: =IFERROR(SUBTOTAL(9,L7:L1048576),"") -> 0 | N4: =IFERROR(SUBTOTAL(9,N7:N1048576),"") -> 0.8 | P4: =IFERROR(SUBTOTAL(9,P7:P1048576),"") -> 0.4 | R4: =IFERROR(SUBTOTAL(9,R7:R1048576),"") -> 0
A5: N° coup de filet | B5: Date coup de filet | C5: N° cale | D5: Marlin | F5: Espadon | H5: Dorade Coryphène (Mahi Mahi) | J5: Thazard Bâtard (Wahoo) | L5: Barracuda | N5: Balistes (Caoutchouc) | P5: Poisson Banane (Comètes saumon) | R5: Autres thons et bonites non ciblés
D6: Qté (tonnes) | E6: Poids moyen (kg) | F6: Qté (tonnes) | G6: Poids moyen (kg) | H6: Qté (tonnes) | I6: Poids moyen (kg) | J6: Qté (tonnes) | K6: Poids moyen (kg) | L6: Qté (tonnes) | M6: Poids moyen (kg) | N6: Qté (tonnes) | O6: Poids moyen (kg) | P6: Qté (tonnes) | Q6: Poids moyen (kg) | R6: Qté (tonnes) | S6: Poids moyen (kg)
A7: 1 | B7: 2017-10-24 | C7: 2 | D7: 0.2 | E7: 0.2 | H7: 0.2 | N7: 0.1 | P7: 0.1
A8: 2
A9: 3 | B9: 2017-10-26 | C9: 4 | H9: 0.1 | N9: 0.1 | P9: 0.1
A10: 4 | B10: 2017-10-26 | C10: 4 | N10: 0.1
A11: 5
A12: 6 | B12: 2017-10-28 | C12: 6 | N12: 0.1 | P12: 0.2
A13: 7 | B13: 2017-10-30 | C13: 3 | H13: 0.3 | I13: 2 | J13: 0.1 | K13: 2 | N13: 0.1 | O13: 0.6
A14: 8 | B14: 2017-10-31 | C14: 3 | H14: 0.3 | I14: 2.5 | J14: 0.1 | K14: 2 | N14: 0.2 | O14: 0.5
A15: 9 | B15: 2017-11-01 | C15: 4 | H15: 0.1 | I15: 2 | N15: 0.1 | O15: 0.1
A16: 10 | B16: 2017-11-03 | C16: 4 | H16: 0.2
A17: 11 | B17: 2017-11-04 | C17: 2 | H17: 0.3 | I17: 2 | J17: 0.1 | K17: 1
A18: 12
A19: 13
A20: 14
A21: 15
A22: 16
A23: 17
A24: 18
A25: 19
A26: 20
A27: 21
A28: 22
A29: 23
A30: 24
A31: 25
A32: 26
A33: 27
A34: 28
A35: 29
A36: 30
A37: 31
A38: 32
A39: 33
A40: 34
A41: 35
A42: 36
A43: 37
A44: 38
A45: 39
A46: 40
